[Event "Late-Titled-Tuesday-Blitz-February-06-2024"]
[Site "Chess.com"]
[Date "2024.02.06"]
[Round "8"]
[White "sotochess"]
[Black "Walter_White_Poland"]
[Result "1-0"]
[WhiteElo "2554"]
[BlackElo "2395"]
[TimeControl "180+1"]
[EndTime "15:27:07 PST"]
[Termination "sotochess won by resignation"]

1. e4 {[%clk 0:03:00]} 1... e6 {[%clk 0:02:59.1]} 2. Qe2 {[%clk 0:02:59.6]} 2...
c5 {[%clk 0:02:56.9]} 3. Nf3 {[%clk 0:02:53.5]} 3... Nc6 {[%clk 0:02:56.5]} 4.
g3 {[%clk 0:02:53.1]} 4... g6 {[%clk 0:02:55.1]} 5. Bg2 {[%clk 0:02:52.9]} 5...
Bg7 {[%clk 0:02:55]} 6. O-O {[%clk 0:02:53.8]} 6... d6 {[%clk 0:02:52.6]} 7. c3
{[%clk 0:02:53.2]} 7... Nge7 {[%clk 0:02:52.2]} 8. Rd1 {[%clk 0:02:52.7]} 8...
Qb6 {[%clk 0:02:48.4]} 9. h4 {[%clk 0:02:51.9]} 9... h6 {[%clk 0:02:41.4]} 10.
Na3 {[%clk 0:02:50.7]} 10... a6 {[%clk 0:02:24.9]} 11. Nc4 {[%clk 0:02:48.6]}
11... Qc7 {[%clk 0:02:24.6]} 12. a4 {[%clk 0:02:48.2]} 12... b6 {[%clk
0:01:51.7]} 13. d3 {[%clk 0:02:46.6]} 13... Bb7 {[%clk 0:01:44]} 14. Bf4 {[%clk
0:02:44.9]} 14... Ne5 {[%clk 0:01:20.9]} 15. a5 {[%clk 0:02:14]} 15... Nxc4
{[%clk 0:01:08.2]} 16. dxc4 {[%clk 0:02:12.6]} 16... Rd8 {[%clk 0:00:32.7]} 17.
axb6 {[%clk 0:01:56.7]} 17... Qxb6 {[%clk 0:00:33.6]} 18. e5 {[%clk 0:01:47]}
18... dxe5 {[%clk 0:00:19.6]} 19. Rxd8+ {[%clk 0:01:45.3]} 19... Qxd8 {[%clk
0:00:19]} 20. Bxe5 {[%clk 0:01:44.5]} 20... O-O {[%clk 0:00:15.6]} 21. Bxg7
{[%clk 0:01:37.9]} 21... Kxg7 {[%clk 0:00:14.1]} 22. Qe5+ {[%clk 0:01:38.2]}
22... Kh7 {[%clk 0:00:11.9]} 23. Qxc5 {[%clk 0:01:38.1]} 23... Qa8 {[%clk
0:00:11.2]} 24. Qxe7 {[%clk 0:01:34.9]} 24... Re8 {[%clk 0:00:10.9]} 25. Qxf7+
{[%clk 0:01:34.7]} 1-0

[Event "Late-Titled-Tuesday-Blitz-February-06-2024"]
[Site "Chess.com"]
[Date "2024.02.06"]
[Round "8"]
[White "vanyakuba"]
[Black "el008"]
[Result "0-1"]
[WhiteElo "2359"]
[BlackElo "2542"]
[TimeControl "180+1"]
[EndTime "15:27:09 PST"]
[Termination "el008 won by resignation"]

1. e4 {[%clk 0:03:00.9]} 1... b6 {[%clk 0:03:00]} 2. d4 {[%clk 0:02:59.2]} 2...
Bb7 {[%clk 0:03:00.5]} 3. Bd3 {[%clk 0:02:59]} 3... e6 {[%clk 0:03:01]} 4. Nf3
{[%clk 0:02:58.5]} 4... c5 {[%clk 0:03:00.6]} 5. c3 {[%clk 0:02:58.1]} 5... d6
{[%clk 0:02:59.1]} 6. O-O {[%clk 0:02:57.7]} 6... Nf6 {[%clk 0:02:59.3]} 7. Re1
{[%clk 0:02:57.8]} 7... Be7 {[%clk 0:02:59.7]} 8. e5 {[%clk 0:02:49.3]} 8...
dxe5 {[%clk 0:02:59.2]} 9. dxe5 {[%clk 0:02:48.9]} 9... Nd5 {[%clk 0:02:57.9]}
10. Qe2 {[%clk 0:02:38.8]} 10... a6 {[%clk 0:02:55.4]} 11. a4 {[%clk 0:02:24.6]}
11... Nc6 {[%clk 0:02:55.1]} 12. Na3 {[%clk 0:02:15.4]} 12... Na5 {[%clk
0:02:54]} 13. Bc2 {[%clk 0:02:00.7]} 13... Qc7 {[%clk 0:02:50.8]} 14. Nc4 {[%clk
0:01:46.2]} 14... Nxc4 {[%clk 0:02:43]} 15. Qxc4 {[%clk 0:01:47.1]} 15... Bc6
{[%clk 0:02:38.6]} 16. Qg4 {[%clk 0:01:41.5]} 16... g6 {[%clk 0:02:36.8]} 17.
Bh6 {[%clk 0:01:32.3]} 17... O-O-O {[%clk 0:02:34.6]} 18. Nd2 {[%clk 0:01:18.1]}
18... Kb8 {[%clk 0:02:28.1]} 19. Nc4 {[%clk 0:01:07.1]} 19... Qb7 {[%clk
0:02:16.8]} 20. a5 {[%clk 0:00:58.5]} 20... b5 {[%clk 0:02:16.8]} 21. Nd6 {[%clk
0:00:58.7]} 21... Bxd6 {[%clk 0:02:16.1]} 22. exd6 {[%clk 0:00:59.6]} 22... Rxd6
{[%clk 0:02:05.2]} 23. Bg7 {[%clk 0:00:59.6]} 23... f5 {[%clk 0:01:53.9]} 24.
Qg3 {[%clk 0:00:32.2]} 24... f4 {[%clk 0:01:54.3]} 25. Bxh8 {[%clk 0:00:15.6]}
25... fxg3 {[%clk 0:01:54.4]} 26. Be5 {[%clk 0:00:15.8]} 26... gxf2+ {[%clk
0:01:55.3]} 27. Kxf2 {[%clk 0:00:16]} 27... Qe7 {[%clk 0:01:50]} 28. c4 {[%clk
0:00:14.4]} 28... bxc4 {[%clk 0:01:50.2]} 29. Ra3 {[%clk 0:00:11.7]} 29... Kb7
{[%clk 0:01:49.9]} 30. Bxd6 {[%clk 0:00:11.2]} 30... Qxd6 {[%clk 0:01:50.8]} 31.
Kg1 {[%clk 0:00:10.5]} 31... Nb4 {[%clk 0:01:49.7]} 32. Bb1 {[%clk 0:00:08]}
32... Qd2 {[%clk 0:01:49.9]} 33. Rae3 {[%clk 0:00:06.2]} 0-1

[Event "Late-Titled-Tuesday-Blitz-February-06-2024"]
[Site "Chess.com"]
[Date "2024.02.06"]
[Round "8"]
[White "Zallio"]
[Black "youngdinousaur"]
[Result "1-0"]
[WhiteElo "2149"]
[BlackElo "2317"]
[TimeControl "180+1"]
[EndTime "15:27:15 PST"]
[Termination "Zallio won by resignation"]

1. d4 {[%clk 0:02:56.3]} 1... Nf6 {[%clk 0:02:59.8]} 2. Nf3 {[%clk 0:02:56.8]}
2... e6 {[%clk 0:03:00.7]} 3. e3 {[%clk 0:02:57]} 3... d5 {[%clk 0:03:01.1]} 4.
Be2 {[%clk 0:02:56.5]} 4... c5 {[%clk 0:03:02]} 5. O-O {[%clk 0:02:55.1]} 5...
Nc6 {[%clk 0:03:02.9]} 6. b3 {[%clk 0:02:55.4]} 6... Be7 {[%clk 0:03:03.6]} 7.
Bb2 {[%clk 0:02:55.9]} 7... O-O {[%clk 0:03:04.5]} 8. Nbd2 {[%clk 0:02:55.8]}
8... b6 {[%clk 0:03:04]} 9. Re1 {[%clk 0:02:55.3]} 9... Bb7 {[%clk 0:03:04.3]}
10. c4 {[%clk 0:02:55.9]} 10... dxc4 {[%clk 0:03:04.2]} 11. bxc4 {[%clk
0:02:55.6]} 11... cxd4 {[%clk 0:03:04.4]} 12. exd4 {[%clk 0:02:55.8]} 12... Rc8
{[%clk 0:03:04.7]} 13. Qa4 {[%clk 0:02:53.7]} 13... Na5 {[%clk 0:03:00.1]} 14.
Red1 {[%clk 0:02:49.5]} 14... Qc7 {[%clk 0:02:58.1]} 15. Rac1 {[%clk 0:02:48.5]}
15... Rfd8 {[%clk 0:02:57.4]} 16. Ne5 {[%clk 0:02:39]} 16... Bd6 {[%clk
0:02:52.8]} 17. Bf3 {[%clk 0:02:24.5]} 17... Bxf3 {[%clk 0:02:51.1]} 18. Ndxf3
{[%clk 0:02:21.5]} 18... h6 {[%clk 0:02:41]} 19. c5 {[%clk 0:02:20.9]} 19... Be7
{[%clk 0:02:26.1]} 20. Bc3 {[%clk 0:02:06.5]} 20... Nb7 {[%clk 0:02:11.6]} 21.
Qxa7 {[%clk 0:01:48.8]} 21... bxc5 {[%clk 0:02:06.8]} 22. dxc5 {[%clk
0:01:45.8]} 22... Bxc5 {[%clk 0:02:04.6]} 23. Rxd8+ {[%clk 0:01:43.4]} 23...
Rxd8 {[%clk 0:02:02.1]} 24. Qa4 {[%clk 0:01:34.8]} 24... Nd5 {[%clk 0:01:47.5]}
25. Bd4 {[%clk 0:01:22.4]} 25... Rc8 {[%clk 0:01:38.6]} 26. Nd7 {[%clk
0:01:15.1]} 26... Bxd4 {[%clk 0:00:53.2]} 27. Rxc7 {[%clk 0:01:07.9]} 27... Rxc7
{[%clk 0:00:53.5]} 28. Qa8+ {[%clk 0:01:05.5]} 28... Kh7 {[%clk 0:00:53.1]} 29.
Nf8+ {[%clk 0:01:05.8]} 29... Kg8 {[%clk 0:00:48.5]} 30. Nxe6+ {[%clk
0:01:05.5]} 30... Kh7 {[%clk 0:00:48.9]} 31. Nxc7 {[%clk 0:01:05.3]} 1-0

[Event "Late-Titled-Tuesday-Blitz-February-06-2024"]
[Site "Chess.com"]
[Date "2024.02.06"]
[Round "8"]
[White "Szparu"]
[Black "TimGrutter03"]
[Result "1-0"]
[WhiteElo "2810"]
[BlackElo "2609"]
[TimeControl "180+1"]
[EndTime "15:27:34 PST"]
[Termination "Szparu won by resignation"]

1. Nf3 {[%clk 0:03:00.9]} 1... Nf6 {[%clk 0:02:54.9]} 2. c4 {[%clk 0:03:01]}
2... b6 {[%clk 0:02:52.7]} 3. g3 {[%clk 0:03:01.2]} 3... Bb7 {[%clk 0:02:52.8]}
4. Bg2 {[%clk 0:03:02]} 4... c5 {[%clk 0:02:52.3]} 5. O-O {[%clk 0:03:02]} 5...
g6 {[%clk 0:02:52.1]} 6. Nc3 {[%clk 0:03:01.2]} 6... Bg7 {[%clk 0:02:51.9]} 7.
d3 {[%clk 0:02:53.9]} 7... O-O {[%clk 0:02:48.5]} 8. e4 {[%clk 0:02:53.9]} 8...
d6 {[%clk 0:02:46.9]} 9. h3 {[%clk 0:02:51.9]} 9... a6 {[%clk 0:02:46]} 10. Be3
{[%clk 0:02:50.3]} 10... Qd7 {[%clk 0:02:44.7]} 11. Qc2 {[%clk 0:02:45.4]} 11...
Nc6 {[%clk 0:02:36.5]} 12. d4 {[%clk 0:02:41.9]} 12... cxd4 {[%clk 0:02:35.1]}
13. Nxd4 {[%clk 0:02:41.7]} 13... Rac8 {[%clk 0:02:28.2]} 14. Nxc6 {[%clk
0:02:40]} 14... Qxc6 {[%clk 0:02:28.7]} 15. b3 {[%clk 0:02:27.9]} 15... b5
{[%clk 0:02:28.4]} 16. Nd5 {[%clk 0:02:28.6]} 16... Nxd5 {[%clk 0:02:23.2]} 17.
exd5 {[%clk 0:02:29.5]} 17... Qd7 {[%clk 0:02:13.2]} 18. Rac1 {[%clk 0:02:30.1]}
18... e6 {[%clk 0:02:13.7]} 19. Qd3 {[%clk 0:02:22.9]} 19... e5 {[%clk
0:02:00.7]} 20. c5 {[%clk 0:02:18.3]} 20... dxc5 {[%clk 0:02:01.6]} 21. Rxc5
{[%clk 0:02:16.3]} 21... f5 {[%clk 0:01:58]} 22. Rd1 {[%clk 0:02:04.1]} 22... f4
{[%clk 0:01:49.7]} 23. Rxc8 {[%clk 0:02:03.9]} 23... Bxc8 {[%clk 0:01:39.7]} 24.
Bc5 {[%clk 0:02:03.7]} 24... Rd8 {[%clk 0:01:36.7]} 25. d6 {[%clk 0:01:59.1]}
25... Bb7 {[%clk 0:01:34.4]} 26. Bxb7 {[%clk 0:01:47.6]} 26... Qxb7 {[%clk
0:01:35.3]} 27. d7 {[%clk 0:01:48.1]} 27... Bf6 {[%clk 0:01:27.4]} 28. Qd6
{[%clk 0:01:47.1]} 28... fxg3 {[%clk 0:00:46.7]} 29. Qxf6 {[%clk 0:01:43.1]}
29... gxf2+ {[%clk 0:00:46.3]} 30. Kxf2 {[%clk 0:01:38.9]} 30... Qc7 {[%clk
0:00:45.9]} 31. b4 {[%clk 0:01:27.3]} 31... e4 {[%clk 0:00:46.2]} 32. Qxd8+
{[%clk 0:01:18.2]} 32... Qxd8 {[%clk 0:00:45.3]} 33. Be7 {[%clk 0:01:17.4]}
33... Qb6+ {[%clk 0:00:38.2]} 34. Kg2 {[%clk 0:01:13.2]} 1-0

[Event "Late-Titled-Tuesday-Blitz-February-06-2024"]
[Site "Chess.com"]
[Date "2024.02.06"]
[Round "8"]
[White "Beca95"]
[Black "mr_gustavo"]
[Result "0-1"]
[WhiteElo "2926"]
[BlackElo "2712"]
[TimeControl "180+1"]
[EndTime "15:27:35 PST"]
[Termination "mr_gustavo won by resignation"]

1. e4 {[%clk 0:03:00.9]} 1... c5 {[%clk 0:02:59.6]} 2. Nc3 {[%clk 0:02:59.8]}
2... d6 {[%clk 0:02:59.8]} 3. Bc4 {[%clk 0:02:59.7]} 3... Nc6 {[%clk 0:02:56.8]}
4. a3 {[%clk 0:02:59.9]} 4... Nf6 {[%clk 0:02:56.6]} 5. d3 {[%clk 0:02:59.9]}
5... e6 {[%clk 0:02:56.2]} 6. Ba2 {[%clk 0:03:00.3]} 6... Be7 {[%clk 0:02:55.7]}
7. f4 {[%clk 0:02:59.2]} 7... O-O {[%clk 0:02:55.5]} 8. Nf3 {[%clk 0:02:59.7]}
8... d5 {[%clk 0:02:54.2]} 9. O-O {[%clk 0:02:56.5]} 9... b6 {[%clk 0:02:53.1]}
10. e5 {[%clk 0:02:54]} 10... Nd7 {[%clk 0:02:52.9]} 11. Ne2 {[%clk 0:02:54.4]}
11... f6 {[%clk 0:02:46.3]} 12. d4 {[%clk 0:02:52.4]} 12... fxe5 {[%clk
0:02:34.6]} 13. dxe5 {[%clk 0:02:50.3]} 13... Ba6 {[%clk 0:02:21.5]} 14. Re1
{[%clk 0:02:49.4]} 14... Rc8 {[%clk 0:02:01.6]} 15. Ng3 {[%clk 0:02:47.3]} 15...
g6 {[%clk 0:01:51.3]} 16. c3 {[%clk 0:02:44.4]} 16... Kh8 {[%clk 0:01:31.2]} 17.
b4 {[%clk 0:02:41.1]} 17... cxb4 {[%clk 0:01:27.4]} 18. axb4 {[%clk 0:02:35.6]}
18... Bb5 {[%clk 0:01:26.2]} 19. Ne2 {[%clk 0:02:31]} 19... Bxe2 {[%clk
0:01:15.8]} 20. Rxe2 {[%clk 0:02:24]} 20... b5 {[%clk 0:01:11.1]} 21. Bb1 {[%clk
0:02:19.1]} 21... Nb6 {[%clk 0:01:10.5]} 22. h4 {[%clk 0:01:43.3]} 22... d4
{[%clk 0:01:10.5]} 23. cxd4 {[%clk 0:01:39.2]} 23... Nxd4 {[%clk 0:01:08.8]} 24.
Qxd4 {[%clk 0:00:25.1]} 24... Rxc1+ {[%clk 0:01:07.2]} 25. Kh2 {[%clk
0:00:24.1]} 25... Qxd4 {[%clk 0:01:02.6]} 26. Nxd4 {[%clk 0:00:25]} 26... Rxf4
{[%clk 0:01:02.9]} 27. Nb3 {[%clk 0:00:23.1]} 27... Rxh4+ {[%clk 0:00:57.5]} 0-1

[Event "Late-Titled-Tuesday-Blitz-February-06-2024"]
[Site "Chess.com"]
[Date "2024.02.06"]
[Round "8"]
[White "Lennis93"]
[Black "dmitrijiIM"]
[Result "0-1"]
[WhiteElo "2688"]
[BlackElo "2919"]
[TimeControl "180+1"]
[EndTime "15:27:39 PST"]
[Termination "dmitrijiIM won on time"]

1. Nf3 {[%clk 0:03:00.4]} 1... d5 {[%clk 0:02:58.5]} 2. d4 {[%clk 0:02:59.8]}
2... Nf6 {[%clk 0:02:58.2]} 3. c4 {[%clk 0:02:59.6]} 3... e6 {[%clk 0:02:58.4]}
4. Nc3 {[%clk 0:02:59.9]} 4... c6 {[%clk 0:02:58.9]} 5. Bg5 {[%clk 0:02:59.7]}
5... Nbd7 {[%clk 0:02:58.7]} 6. e3 {[%clk 0:02:59.8]} 6... Be7 {[%clk
0:02:59.2]} 7. Qc2 {[%clk 0:02:58.8]} 7... O-O {[%clk 0:02:58.5]} 8. Rd1 {[%clk
0:02:58.2]} 8... h6 {[%clk 0:02:58.5]} 9. Bh4 {[%clk 0:02:57.9]} 9... b6 {[%clk
0:02:55.8]} 10. Bd3 {[%clk 0:02:48.7]} 10... Ba6 {[%clk 0:02:54.5]} 11. b3
{[%clk 0:02:01.8]} 11... Bb7 {[%clk 0:02:54.2]} 12. O-O {[%clk 0:02:01.2]} 12...
c5 {[%clk 0:02:54.5]} 13. Qe2 {[%clk 0:01:55]} 13... Rc8 {[%clk 0:02:50.5]} 14.
Ne5 {[%clk 0:01:48.7]} 14... cxd4 {[%clk 0:02:14.1]} 15. exd4 {[%clk 0:01:47.5]}
15... Nxe5 {[%clk 0:02:14.7]} 16. dxe5 {[%clk 0:01:46.7]} 16... Nd7 {[%clk
0:02:15.3]} 17. Bg3 {[%clk 0:01:44.5]} 17... a6 {[%clk 0:02:01.9]} 18. Bb1
{[%clk 0:01:16.1]} 18... Qc7 {[%clk 0:01:47.1]} 19. Qc2 {[%clk 0:00:51]} 19...
g6 {[%clk 0:01:39.8]} 20. Qd2 {[%clk 0:00:05.3]} 20... Kh7 {[%clk 0:01:35.5]}
21. Nxd5 {[%clk 0:00:02.8]} 21... exd5 {[%clk 0:01:31.7]} 22. e6 {[%clk
0:00:03.5]} 22... Bd6 {[%clk 0:01:30.7]} 23. exd7 {[%clk 0:00:03.5]} 23... Qxd7
{[%clk 0:01:29.4]} 24. cxd5 {[%clk 0:00:03.2]} 24... Rc5 {[%clk 0:01:19.6]} 25.
Be4 {[%clk 0:00:02.3]} 25... Rd8 {[%clk 0:01:16.6]} 26. Bf3 {[%clk 0:00:01.9]}
26... a5 {[%clk 0:01:15.7]} 0-1

[Event "Late-Titled-Tuesday-Blitz-February-06-2024"]
[Site "Chess.com"]
[Date "2024.02.06"]
[Round "8"]
[White "nikitadovbnya2008"]
[Black "koncheto"]
[Result "0-1"]
[WhiteElo "2347"]
[BlackElo "2507"]
[TimeControl "180+1"]
[EndTime "15:27:45 PST"]
[Termination "koncheto won by resignation"]

1. d4 {[%clk 0:03:00]} 1... Nf6 {[%clk 0:03:00.1]} 2. c4 {[%clk 0:02:58.9]} 2...
e6 {[%clk 0:03:01]} 3. Nc3 {[%clk 0:02:58.3]} 3... c5 {[%clk 0:03:01.9]} 4. d5
{[%clk 0:02:57.7]} 4... exd5 {[%clk 0:03:02.8]} 5. cxd5 {[%clk 0:02:58.3]} 5...
d6 {[%clk 0:03:03.1]} 6. e4 {[%clk 0:02:58.5]} 6... g6 {[%clk 0:03:03.7]} 7. f4
{[%clk 0:02:58.8]} 7... Bg7 {[%clk 0:03:03.6]} 8. Bb5+ {[%clk 0:02:57.8]} 8...
Nfd7 {[%clk 0:03:04]} 9. Nf3 {[%clk 0:02:57.6]} 9... O-O {[%clk 0:03:04.6]} 10.
a4 {[%clk 0:02:56.9]} 10... Na6 {[%clk 0:03:05.3]} 11. O-O {[%clk 0:02:55.9]}
11... Re8 {[%clk 0:03:01.1]} 12. f5 {[%clk 0:02:47.9]} 12... Nb4 {[%clk
0:02:59.7]} 13. Bg5 {[%clk 0:02:40.6]} 13... f6 {[%clk 0:02:58.1]} 14. Bf4
{[%clk 0:02:36.1]} 14... a6 {[%clk 0:02:56.7]} 15. Bc4 {[%clk 0:02:32.4]} 15...
Ne5 {[%clk 0:02:56.6]} 16. Nxe5 {[%clk 0:02:26.7]} 16... fxe5 {[%clk 0:02:57]}
17. Be3 {[%clk 0:02:07.5]} 17... gxf5 {[%clk 0:02:48.8]} 18. exf5 {[%clk
0:02:08.4]} 18... Qh4 {[%clk 0:02:49.4]} 19. Qe2 {[%clk 0:01:55.9]} 19... Nc2
{[%clk 0:02:46]} 20. Bf2 {[%clk 0:01:42]} 20... Qf4 {[%clk 0:02:31.6]} 21. h3
{[%clk 0:01:34]} 21... Nxa1 {[%clk 0:02:28.9]} 22. Rxa1 {[%clk 0:01:31]} 22...
Bxf5 {[%clk 0:02:28.8]} 23. Rf1 {[%clk 0:01:23.4]} 23... Qg5 {[%clk 0:02:26.2]}
24. Be3 {[%clk 0:01:20.1]} 24... Qg6 {[%clk 0:02:23.3]} 25. Kh2 {[%clk
0:01:19.4]} 25... e4 {[%clk 0:02:22.2]} 26. g4 {[%clk 0:01:17.7]} 26... Be5+
{[%clk 0:02:21.7]} 27. Bf4 {[%clk 0:01:12]} 27... Bd7 {[%clk 0:02:18.4]} 28.
Nxe4 {[%clk 0:01:06]} 28... Rf8 {[%clk 0:02:14.1]} 29. Bxe5 {[%clk 0:00:52.9]}
29... Rxf1 {[%clk 0:02:12.9]} 30. Qxf1 {[%clk 0:00:52.1]} 30... Qxe4 {[%clk
0:02:12.6]} 31. Bxd6 {[%clk 0:00:51.7]} 31... Re8 {[%clk 0:02:04.6]} 32. b3
{[%clk 0:00:48.5]} 32... Qc2+ {[%clk 0:01:53.5]} 33. Kg3 {[%clk 0:00:43.9]}
33... b5 {[%clk 0:01:51.8]} 34. Bd3 {[%clk 0:00:38.9]} 34... Qxb3 {[%clk
0:01:48.8]} 35. axb5 {[%clk 0:00:29.2]} 35... Bxb5 {[%clk 0:01:44.4]} 36. Kh4
{[%clk 0:00:18.7]} 36... Qxd3 {[%clk 0:01:44.2]} 37. Qf6 {[%clk 0:00:17.7]}
37... Qg6 {[%clk 0:01:44.5]} 38. Qf4 {[%clk 0:00:15.1]} 38... c4 {[%clk
0:01:41.5]} 39. Be5 {[%clk 0:00:14.7]} 39... h6 {[%clk 0:01:38.1]} 40. d6 {[%clk
0:00:12.3]} 40... Rxe5 {[%clk 0:01:38]} 41. Qxe5 {[%clk 0:00:10.1]} 41... Qg5+
{[%clk 0:01:38.3]} 42. Qxg5+ {[%clk 0:00:09.9]} 42... hxg5+ {[%clk 0:01:39.2]}
43. Kxg5 {[%clk 0:00:10.5]} 43... c3 {[%clk 0:01:40.1]} 44. h4 {[%clk
0:00:09.1]} 44... c2 {[%clk 0:01:40]} 45. h5 {[%clk 0:00:10]} 45... c1=Q+ {[%clk
0:01:40.4]} 0-1

[Event "Late-Titled-Tuesday-Blitz-February-06-2024"]
[Site "Chess.com"]
[Date "2024.02.06"]
[Round "8"]
[White "rezamahdavi2008"]
[Black "HansOnTwitch"]
[Result "0-1"]
[WhiteElo "2840"]
[BlackElo "3143"]
[TimeControl "180+1"]
[EndTime "15:27:51 PST"]
[Termination "HansOnTwitch won on time"]

1. e4 {[%clk 0:03:00.9]} 1... c5 {[%clk 0:02:59.7]} 2. Nf3 {[%clk 0:03:01.1]}
2... d6 {[%clk 0:03:00.1]} 3. d4 {[%clk 0:03:01.8]} 3... cxd4 {[%clk 0:03:01]}
4. Nxd4 {[%clk 0:03:02.7]} 4... Nf6 {[%clk 0:03:01.7]} 5. Nc3 {[%clk 0:03:03.5]}
5... a6 {[%clk 0:03:02.5]} 6. Bc4 {[%clk 0:03:04.2]} 6... b5 {[%clk 0:02:58.1]}
7. Bb3 {[%clk 0:03:01.2]} 7... e6 {[%clk 0:02:58.5]} 8. Be3 {[%clk 0:02:56.6]}
8... Bb7 {[%clk 0:02:57.7]} 9. f3 {[%clk 0:02:53.3]} 9... h5 {[%clk 0:02:58]}
10. Qd2 {[%clk 0:02:51.5]} 10... Nbd7 {[%clk 0:02:57.9]} 11. a4 {[%clk
0:02:24.3]} 11... b4 {[%clk 0:02:56.9]} 12. Nce2 {[%clk 0:02:23.6]} 12... d5
{[%clk 0:02:56.3]} 13. O-O-O {[%clk 0:01:51.3]} 13... Nc5 {[%clk 0:02:36.4]} 14.
Kb1 {[%clk 0:01:47.1]} 14... Nxb3 {[%clk 0:02:34.3]} 15. Nxb3 {[%clk 0:01:39.8]}
15... dxe4 {[%clk 0:02:34.7]} 16. Bd4 {[%clk 0:01:26.6]} 16... Qc7 {[%clk
0:02:25.7]} 17. Rhe1 {[%clk 0:01:18]} 17... Be7 {[%clk 0:02:24.1]} 18. Qg5
{[%clk 0:01:10.3]} 18... Rc8 {[%clk 0:02:20.2]} 19. Rc1 {[%clk 0:00:57.6]} 19...
O-O {[%clk 0:02:13.4]} 20. Ng3 {[%clk 0:00:54.7]} 20... Rfd8 {[%clk 0:02:05.7]}
21. Be5 {[%clk 0:00:48.2]} 21... Rd5 {[%clk 0:02:05.1]} 22. Nf5 {[%clk
0:00:37.4]} 22... exf5 {[%clk 0:02:02.8]} 23. Bxc7 {[%clk 0:00:37.6]} 23... Rxc7
{[%clk 0:02:02]} 24. Rcd1 {[%clk 0:00:36.7]} 24... g6 {[%clk 0:01:56.4]} 25.
Rxd5 {[%clk 0:00:32.5]} 25... Nxd5 {[%clk 0:01:57.3]} 26. Qd2 {[%clk 0:00:32.5]}
26... Rd7 {[%clk 0:01:48.9]} 27. Qe2 {[%clk 0:00:25]} 27... e3 {[%clk
0:01:48.5]} 28. Rd1 {[%clk 0:00:20.9]} 28... f4 {[%clk 0:01:44.4]} 29. Na5
{[%clk 0:00:18.8]} 29... Ba8 {[%clk 0:01:41.7]} 30. Ka1 {[%clk 0:00:14]} 30...
Bf6 {[%clk 0:01:42.2]} 31. Qxa6 {[%clk 0:00:12.4]} 31... Rd8 {[%clk 0:01:38.3]}
32. Nc6 {[%clk 0:00:06.7]} 32... Bxc6 {[%clk 0:01:36.2]} 33. Qxc6 {[%clk
0:00:07.6]} 33... Kg7 {[%clk 0:01:34.8]} 34. Qc4 {[%clk 0:00:04.9]} 34... Nb6
{[%clk 0:01:31.7]} 35. Qe2 {[%clk 0:00:05.3]} 35... Ra8 {[%clk 0:01:32.1]} 36.
Ka2 {[%clk 0:00:03.5]} 36... Nxa4 {[%clk 0:01:32]} 37. Kb3 {[%clk 0:00:03.3]}
37... Nxb2 {[%clk 0:01:31.8]} 38. Rd7 {[%clk 0:00:02.9]} 38... Bc3 {[%clk
0:01:28.8]} 0-1

[Event "Late-Titled-Tuesday-Blitz-February-06-2024"]
[Site "Chess.com"]
[Date "2024.02.06"]
[Round "8"]
[White "Chessdude1987"]
[Black "wanyaland"]
[Result "0-1"]
[WhiteElo "2307"]
[BlackElo "2485"]
[TimeControl "180+1"]
[EndTime "15:27:54 PST"]
[Termination "wanyaland won on time"]

1. e4 {[%clk 0:03:00.9]} 1... c5 {[%clk 0:02:59.1]} 2. Nf3 {[%clk 0:03:00.6]}
2... e6 {[%clk 0:02:59.1]} 3. d4 {[%clk 0:02:56.4]} 3... cxd4 {[%clk 0:03:00]}
4. Nxd4 {[%clk 0:02:56.6]} 4... Nc6 {[%clk 0:03:00.6]} 5. Nc3 {[%clk 0:02:56.7]}
5... Qc7 {[%clk 0:03:00]} 6. g3 {[%clk 0:02:57]} 6... a6 {[%clk 0:02:57.5]} 7.
Bg2 {[%clk 0:02:56]} 7... Nf6 {[%clk 0:02:57.1]} 8. O-O {[%clk 0:02:55.5]} 8...
Nxd4 {[%clk 0:02:48.1]} 9. Qxd4 {[%clk 0:02:54.7]} 9... Bc5 {[%clk 0:02:48.7]}
10. Qd1 {[%clk 0:02:45.1]} 10... d6 {[%clk 0:02:42.2]} 11. Re1 {[%clk
0:02:18.2]} 11... O-O {[%clk 0:02:39.2]} 12. Be3 {[%clk 0:02:16.3]} 12... Bb4
{[%clk 0:02:28]} 13. Bg5 {[%clk 0:02:16]} 13... Nd7 {[%clk 0:02:22.3]} 14. Rb1
{[%clk 0:01:27.1]} 14... Re8 {[%clk 0:02:16]} 15. Qg4 {[%clk 0:01:21.5]} 15...
Bxc3 {[%clk 0:02:09.7]} 16. bxc3 {[%clk 0:01:20.5]} 16... Qxc3 {[%clk
0:02:07.4]} 17. Re3 {[%clk 0:01:19.1]} 17... Qxc2 {[%clk 0:02:03]} 18. Rbe1
{[%clk 0:01:14.2]} 18... Ne5 {[%clk 0:02:01.1]} 19. Qh5 {[%clk 0:01:06.1]} 19...
Bd7 {[%clk 0:01:57.2]} 20. Rb3 {[%clk 0:00:55.3]} 20... Bc6 {[%clk 0:01:54.6]}
21. f4 {[%clk 0:00:42]} 21... Nd3 {[%clk 0:01:53.5]} 22. Rf1 {[%clk 0:00:30.8]}
22... Qc5+ {[%clk 0:01:51.8]} 23. Kh1 {[%clk 0:00:28.1]} 23... Nf2+ {[%clk
0:01:51.8]} 24. Rxf2 {[%clk 0:00:23.3]} 24... Qxf2 {[%clk 0:01:52.7]} 25. Rb1
{[%clk 0:00:20.1]} 25... Qxa2 {[%clk 0:01:46.8]} 26. Rf1 {[%clk 0:00:18.9]}
26... Qc4 {[%clk 0:01:45]} 27. Re1 {[%clk 0:00:12.5]} 27... a5 {[%clk
0:01:42.7]} 28. Qg4 {[%clk 0:00:12.1]} 28... Qc3 {[%clk 0:01:40.8]} 29. Rd1
{[%clk 0:00:04.7]} 29... a4 {[%clk 0:01:25.6]} 30. e5 {[%clk 0:00:04.4]} 30...
Bxg2+ {[%clk 0:01:22.3]} 31. Kxg2 {[%clk 0:00:04.6]} 31... dxe5 {[%clk
0:01:18.5]} 32. Bf6 {[%clk 0:00:03.1]} 32... Qc2+ {[%clk 0:01:18.5]} 0-1